fUSD/lending_fUSD_20240425
["ID","MTS","AMOUNT","RATE_DAILY","PERIOD"]
[323522738,1714067258751,316.9702796,7.788e-05,2]
[323522739,1714067264828,16413.55144457,7.788e-05,2]
[323522740,1714067279480,513265.44170528,7.788e-05,2]
[323522741,1714067279501,32108.81197603,7.788e-05,2]
[323522742,1714067282762,316.9702796,7.788e-05,2]
[323522743,1714067300771,316.9702796,7.788e-05,2]
[323522744,1714067314003,844.84698669,7.788e-05,2]
[323522745,1714067318812,316.9702796,7.788e-05,2]
[323522746,1714067338551,173.10377099,7.788e-05,2]
[323522747,1714067338762,316.9702796,7.788e-05,2]
[323522748,1714067341504,65504.00030863,7.788e-05,2]
[323522749,1714067342019,1471.99909209,7.788e-05,2]
[323522750,1714067343194,1374.60563136,7.788e-05,2]
[323522751,1714067344329,1074.20633943,7.788e-05,2]
[323522752,1714067348679,20176.31019024,7.788e-05,2]
[323522753,1714067349124,399.3527009,7.788e-05,2]
[323522754,1714067350072,7501.09882979,7.788e-05,2]
[323522755,1714067354490,173.10377099,7.788e-05,2]
[323522756,1714067354833,316.9702796,7.788e-05,2]
[323522757,1714067355924,19680.8590078,7.788e-05,2]
[323522758,1714067362044,1471.99909209,7.788e-05,2]
[323522759,1714067362249,1074.20633943,7.788e-05,2]
[323522760,1714067363148,1374.60563136,7.788e-05,2]
[323522761,1714067366902,399.3527009,7.788e-05,2]
[323522762,1714067368069,7501.09882979,7.788e-05,2]
[323522763,1714067369449,238.77,8.219e-05,2]
[323522764,1714067373376,173.10377099,7.788e-05,2]
[323522765,1714067373449,2140.6438848,7.788e-05,2]
[323522766,1714067373499,316.9702796,7.788e-05,2]
[323522767,1714067373924,19680.8590078,7.788e-05,2]
[323522768,1714067375056,208.68480832,7.788e-05,2]
[323522769,1714067379143,1374.60563136,7.788e-05,2]
[323522770,1714067380253,155.0,7.788e-05,2]
[323522771,1714067380493,943.34796342,7.788e-05,2]
[323522772,1714067383223,2227.18,8.219e-05,2]
[323522773,1714067383653,546.03515344,6.23e-05,2]
[323522774,1714067384199,288.51985909,7.788e-05,2]
[323522775,1714067384248,1074.20633943,7.788e-05,2]
[323522776,1714067385652,2196.30174498,7.399e-05,2]
[323522777,1714067386059,7501.09882979,7.788e-05,2]
[323522778,1714067386482,173.10377099,7.788e-05,2]
[323522779,1714067387091,365.88218524,7.788e-05,2]
[323522780,1714067387857,1471.99909209,7.788e-05,2]
[323522781,1714067388764,316.9702796,7.788e-05,2]
[323522782,1714067389004,344.58843666,7.788e-05,2]
[323522783,1714067390530,361.34595815,7.788e-05,2]
[323522784,1714067391188,399.3527009,7.788e-05,2]
[323522785,1714067391256,866.55039415,7.788e-05,2]
[323522786,1714067391607,155.0,7.788e-05,2]
[323522787,1714067392680,217.06502401,7.788e-05,2]
[323522788,1714067393931,19680.8590078,7.788e-05,2]
[323522789,1714067394238,320.13918775,7.788e-05,2]
[323522790,1714067399661,546.03515344,6.23e-05,2]
[323522791,1714067400508,559.66150284,7.788e-05,2]
[323522792,1714067400538,155.0,7.788e-05,2]
[323522793,1714067400608,943.34796342,7.788e-05,2]
[323522794,1714067402417,150.0,7.788e-05,2]
[323522795,1714067402592,150.0,7.788e-05,2]
[323522796,1714067402787,150.0,7.788e-05,2]
[323522797,1714067402977,150.0,7.788e-05,2]
[323522798,1714067403019,365.88218524,7.788e-05,2]
[323522799,1714067403191,150.0,7.788e-05,2]
[323522800,1714067403380,150.0,7.788e-05,2]
[323522801,1714067403954,150.0,7.788e-05,2]
[323522802,1714067404023,150.0,7.788e-05,2]
[323522803,1714067404088,150.0,7.788e-05,2]
[323522804,1714067404150,7501.09882979,7.788e-05,2]
[323522805,1714067404227,288.51985909,7.788e-05,2]
[323522806,1714067404328,150.0,7.788e-05,2]
[323522807,1714067404685,150.0,7.788e-05,2]
[323522808,1714067404775,316.9702796,7.788e-05,2]
[323522809,1714067404895,150.0,7.788e-05,2]
[323522810,1714067405111,150.0,7.788e-05,2]
[323522811,1714067405258,1374.60563136,7.788e-05,2]
[323522812,1714067405312,150.0,7.788e-05,2]
[323522813,1714067405500,150.0,7.788e-05,2]
[323522814,1714067405773,1471.99909209,7.788e-05,2]
[323522815,1714067408122,150.0,7.788e-05,2]
[323522820,1714067408330,150.0,7.788e-05,2]
[323522826,1714067408483,173.10377099,7.788e-05,2]
[323522828,1714067408527,150.0,7.788e-05,2]
[323522833,1714067408732,150.0,7.788e-05,2]
[323522837,1714067408915,188.82067515,7.788e-05,2]
[323522845,1714067409206,150.0,7.788e-05,2]
[323522850,1714067409421,150.0,7.788e-05,2]
[323522855,1714067409610,252.29169346,7.788e-05,2]
[323522856,1714067409643,150.0,7.788e-05,2]
[323522858,1714067409676,1830.25145415,7.399e-05,2]
[323522859,1714067409817,284.84998968,7.788e-05,2]
[323522860,1714067410023,19680.8590078,7.788e-05,2]
[323522861,1714067410464,481.82894602,7.788e-05,2]
[323522862,1714067410989,866.55039415,7.788e-05,2]
[323522863,1714067412230,320.13918775,7.788e-05,2]
[323522864,1714067414912,212.52645814,7.788e-05,2]
[323522865,1714067416453,943.34796342,7.788e-05,2]
[323522866,1714067418263,559.66150284,7.788e-05,2]
[323522867,1714067418296,271.26958166,7.788e-05,2]
[323522868,1714067420098,7501.09882979,7.788e-05,2]
[323522869,1714067420208,288.51985909,7.788e-05,2]
[323522870,1714067421763,1471.99909209,7.788e-05,2]
[323522871,1714067424994,316.9702796,7.788e-05,2]
[323522872,1714067425058,365.88218524,7.788e-05,2]
[323522873,1714067425667,546.03515344,6.23e-05,2]
[323522874,1714067425971,19680.8590078,7.788e-05,2]
[323522875,1714067426474,173.10377099,7.788e-05,2]
[323522876,1714067427632,1830.25145415,7.399e-05,2]
[323522877,1714067430235,320.13918775,7.788e-05,2]
[323522878,1714067431129,1374.60563136,7.788e-05,2]
[323522889,1714067431518,232.11,7.148e-05,2]
[323522890,1714067431596,232.11,7.863e-05,2]
[323522891,1714067431618,-383.18110222,8.876e-05,2]
[323522892,1714067431630,-1266.7972655,8.876e-05,2]
[323522893,1714067431642,-1764.09703147,8.876e-05,2]
[323522894,1714067431652,-684.33553441,8.877e-05,2]
[323522895,1714067431661,-1294.31423164,8.877e-05,2]
[323522896,1714067431671,-1394.78548762,8.877e-05,2]
[323522897,1714067431683,-875.59927975,8.877e-05,2]
[323522898,1714067431694,-2860.88092348,8.877e-05,2]
[323522899,1714067431718,-416.30316264,8.877e-05,2]
[323522900,1714067431727,-200.35068603,8.878e-05,2]
[323522901,1714067431736,-1870.24741268,8.878e-05,2]
[323522902,1714067431745,-781.51595373,8.878e-05,2]
[323522903,1714067431755,-1995.26350139,8.878e-05,2]
[323522904,1714067431765,-3790.98634453,8.878e-05,2]
[323522905,1714067431790,-18981.62834229,8.878e-05,2]
[323522906,1714067431799,-10528.16509213,8.878e-05,2]
[323522907,1714067431811,-41.33011621,8.878e-05,2]
[323522908,1714067431821,-194.44129511,8.878e-05,2]
[323522909,1714067431830,-427.71563418,8.879e-05,2]
[323522911,1714067431841,-293.23705762,8.879e-05,2]
[323522915,1714067431890,-232.11,8.578e-05,2]
[323522916,1714067431900,-257.86064903,8.875e-05,2]
[323522917,1714067431909,-2279.87698225,8.879e-05,2]
[323522918,1714067431919,-967.84164303,8.879e-05,2]
[323522919,1714067431929,-7409.70626269,8.88e-05,2]
[323522920,1714067431962,-499.2998041,8.88e-05,2]
[323522921,1714067431974,-1010.86985441,8.88e-05,2]
[323522922,1714067434207,288.51985909,7.788e-05,2]
[323522923,1714067435324,866.55039415,7.788e-05,2]
[323522924,1714067437201,943.34796342,7.788e-05,2]
[323522925,1714067437245,559.66150284,7.788e-05,2]
[323522937,1714067438109,-359.52096542,8.875e-05,2]
[323522938,1714067438118,-1244.79978863,8.875e-05,2]
[323522939,1714067438129,-9263.47170391,8.88e-05,2]
[323522940,1714067438139,-313.84557091,8.88e-05,2]
[323522941,1714067438149,-533.25146559,8.88e-05,2]
[323522942,1714067438159,-19444.79246667,8.88e-05,2]
[323522943,1714067438168,-238.77,8.881e-05,2]
[323522944,1714067438178,-189.31,8.94e-05,2]
[323522945,1714067438189,-851.97,8.942e-05,2]
[323522946,1714067438200,-1608.83176517,9.032e-05,2]
[323522947,1714067438211,-1005.2,9.034e-05,2]
[323522948,1714067438221,-156.29,9.14e-05,2]
[323522949,1714067438230,-156.29,9.186e-05,2]
[323522950,1714067438239,-1844.00781357,9.191e-05,2]
[323522951,1714067438248,-278.47,9.193e-05,2]
[323522952,1714067438257,-232.11,9.292e-05,2]
[323522953,1714067438267,-150.0,9.364e-05,2]
[323522954,1714067438276,-150.0,9.364e-05,2]
[323522955,1714067438285,-488.57,9.367e-05,2]
[323522956,1714067438294,-426.2748,9.414e-05,2]
[323522957,1714067438303,-400.0,9.516e-05,2]
[323522958,1714067438313,-2996.95621618,9.537e-05,2]
[323522959,1714067438324,-238.77,9.544e-05,2]
[323522960,1714067438333,-966.77,9.56e-05,2]
[323522961,1714067438342,-23900.0,9.627e-05,2]
[323522962,1714067438352,-4531.91,9.638e-05,2]
[323522963,1714067438362,-150.99,9.67e-05,2]
[323522964,1714067438373,-453.95,9.67e-05,2]
[323522965,1714067438383,-1577.56,9.694e-05,2]
[323522966,1714067438392,-250.0,9.735e-05,2]
[323522967,1714067438401,-3876.51,9.735e-05,2]
[323522968,1714067438411,-200.0,9.75e-05,2]
[323522969,1714067438421,-221.01,9.763e-05,2]
[323522970,1714067438430,-155.0,9.86e-05,2]
[323522971,1714067438439,-323.93578704,0.0001,2]
[323522972,1714067438448,-232.11,0.00010007,2]
[323522973,1714067438459,-150.99,0.0001007,2]
[323522974,1714067438470,-600.0,0.00010149,2]
[323522975,1714067438480,-238.77,0.00010206,2]
[323522976,1714067438489,-1243.7113064,0.00010303,2]
[323522977,1714067438500,-4724.9962,0.00010305,2]
[323522978,1714067438509,-165.15,0.00010417,2]
[323522979,1714067438519,-2227.18,0.0001042,2]
[323522980,1714067438529,-199.82,0.0001053,2]
[323522981,1714067438538,-400.0,0.00010705,2]
[323522982,1714067438548,-232.11,0.00010722,2]
[323522983,1714067438557,-150.0,0.000108,2]
[323522984,1714067438566,-1000.0,0.00010857,2]
[323522985,1714067438575,-10000.0,0.00010858,2]
[323522986,1714067438585,-1000.0,0.00010858,2]
[323522988,1714067438594,-238.77,0.00010868,2]
[323522990,1714067438604,-2321.50502624,0.00010956,2]
[323522992,1714067438612,-236.7241979,0.00010956,2]
[323522994,1714067438622,-155.0,0.00010956,2]
[323522995,1714067438631,-338.56460926,0.00010956,2]
[323522996,1714067438640,-297.91424604,0.00010956,2]
[323522997,1714067438651,-192.77490072,0.00010956,2]
[323522998,1714067438661,-363.28527503,0.00010956,2]
[323522999,1714067438670,-155.0,0.00010956,2]
[323523000,1714067438680,-155.08534021,0.00010956,2]
[323523001,1714067438689,-343.3914055,0.00010956,2]
[323523002,1714067438699,-524.0482743,0.00010956,2]
[323523003,1714067438709,-155.0,0.00010956,2]
[323523004,1714067438718,-1351.75959821,0.00010956,2]
[323523005,1714067438727,-155.0,0.00010956,2]
[323523006,1714067438737,-155.0,0.00010956,2]
[323523007,1714067438746,-487.39575112,0.00010956,2]
[323523008,1714067438755,-7342.30290133,0.00010956,2]
[323523009,1714067438764,-155.0,0.00010956,2]
[323523010,1714067438773,-2215.83251815,0.00010956,2]
[323523011,1714067438782,-161.5353731,0.00010956,2]
[323523012,1714067438791,-1984.05455498,0.00010956,2]
[323523013,1714067438800,-538.116345,0.00010956,2]
[323523014,1714067438810,-255.48323707,0.00010956,2]
[323523015,1714067438821,-206.8225704,0.00010956,2]
[323523016,1714067438830,-567.87759069,0.00010956,2]
[323523017,1714067438839,-262.25935508,0.00010957,2]
[323523018,1714067438848,-4410.215699,0.00010957,2]
[323523019,1714067438858,-500.0,0.00010958,2]
[323523020,1714067438867,-500.0,0.00010958,2]
[323523021,1714067438877,-202.6998776,0.00010958,2]
[323523022,1714067438886,-185.30231679,0.00010958,2]
[323523023,1714067438895,-606.82549983,0.00010958,2]
[323523024,1714067438905,-604.2,0.00010958,2]
[323523025,1714067438914,-500.0,0.00010958,2]
[323523026,1714067438923,-500.0,0.00010958,2]
[323523027,1714067438933,-500.0,0.00010958,2]
[323523028,1714067438946,-500.0,0.00010958,2]
[323523029,1714067438955,-500.0,0.00010958,2]
[323523030,1714067438966,-500.0,0.00010958,2]
[323523031,1714067438976,-273.76695775,0.00010958,2]
[323523032,1714067438985,-500.0,0.00010958,2]
[323523033,1714067438994,-500.0,0.00010958,2]
[323523034,1714067439004,-500.0,0.00010958,2]
[323523035,1714067439013,-500.0,0.00010958,2]
[323523036,1714067439022,-500.0,0.00010958,2]
[323523037,1714067439031,-500.0,0.00010958,2]
[323523038,1714067439040,-500.0,0.00010958,2]
[323523039,1714067439050,-500.0,0.00010958,2]
[323523040,1714067439059,-500.0,0.00010958,2]
[323523041,1714067439069,-500.0,0.00010958,2]
[323523042,1714067439078,-573.00048368,0.00010958,2]
[323523043,1714067439087,-500.0,0.00010958,2]
[323523044,1714067439096,-500.0,0.00010958,2]
[323523045,1714067439106,-500.0,0.00010958,2]
[323523046,1714067439115,-500.0,0.00010958,2]
[323523047,1714067439125,-500.0,0.00010958,2]
[323523048,1714067439134,-500.0,0.00010958,2]
[323523049,1714067439144,-500.0,0.00010958,2]
[323523050,1714067439153,-500.0,0.00010958,2]
[323523051,1714067439163,-500.0,0.00010958,2]
[323523052,1714067439173,-500.0,0.00010958,2]
[323523053,1714067439182,-597.79,0.00010958,2]
[323523054,1714067439191,-500.0,0.00010958,2]
[323523055,1714067439200,-500.0,0.00010958,2]
[323523056,1714067439209,-679.53,0.00010958,2]
[323523057,1714067439220,-500.0,0.00010958,2]
[323523058,1714067439229,-500.0,0.00010958,2]
[323523059,1714067439238,-500.0,0.00010958,2]
[323523060,1714067439247,-500.0,0.00010958,2]
[323523061,1714067439256,-949.76,0.00010958,2]
[323523062,1714067439265,-500.0,0.00010958,2]
[323523063,1714067439275,-500.0,0.00010958,2]
[323523064,1714067439284,-500.0,0.00010958,2]
[323523065,1714067439293,-500.0,0.00010958,2]
[323523066,1714067439303,-500.0,0.00010958,2]
[323523067,1714067439312,-500.0,0.00010958,2]
[323523068,1714067439321,-500.0,0.00010958,2]
[323523069,1714067439330,-500.0,0.00010958,2]
[323523070,1714067439339,-500.0,0.00010958,2]
[323523071,1714067439348,-500.0,0.00010958,2]
[323523072,1714067439358,-500.0,0.00010958,2]
[323523073,1714067439368,-500.0,0.00010958,2]
[323523074,1714067439381,-500.0,0.00010958,2]
[323523075,1714067439390,-500.0,0.00010958,2]
[323523076,1714067439399,-500.0,0.00010958,2]
[323523077,1714067439409,-958.4,0.00010958,2]
[323523078,1714067439419,-500.0,0.00010958,2]
[323523079,1714067439428,-500.0,0.00010958,2]
[323523081,1714067439438,-500.0,0.00010958,2]
[323523083,1714067439450,-500.0,0.00010958,2]
[323523084,1714067439460,-500.0,0.00010958,2]
[323523085,1714067439470,-500.0,0.00010958,2]
[323523086,1714067439480,-500.0,0.00010958,2]
[323523087,1714067439489,-754.04,0.00010958,2]
[323523089,1714067439499,-500.0,0.00010958,2]
[323523090,1714067439508,-500.0,0.00010958,2]
[323523092,1714067439517,-500.0,0.00010958,2]
[323523094,1714067439528,-500.0,0.00010958,2]
[323523095,1714067439537,-677.29,0.00010958,2]
[323523096,1714067439547,-610.59688917,0.00010958,2]
[323523097,1714067439557,-500.0,0.00010958,2]
[323523098,1714067439567,-913.14,0.00010958,2]
[323523099,1714067439577,-632.77,0.00010958,2]
[323523100,1714067439586,-500.0,0.00010958,2]
[323523101,1714067439595,-500.0,0.00010958,2]
[323523102,1714067439604,-500.0,0.00010958,2]
[323523103,1714067439613,-835.0,0.00010958,2]
[323523104,1714067439623,-576.38,0.00010958,2]
[323523105,1714067439633,-500.0,0.00010958,2]
[323523106,1714067439643,-774.42,0.00010958,2]
[323523107,1714067439653,-537.21,0.00010958,2]
[323523108,1714067439664,-796.17,0.00010958,2]
[323523109,1714067439673,-500.0,0.00010958,2]
[323523110,1714067439682,-800.87,0.00010958,2]
[323523111,1714067439692,-500.0,0.00010958,2]
[323523112,1714067439701,-500.0,0.00010958,2]
[323523113,1714067439712,-500.0,0.00010958,2]
[323523114,1714067439722,-500.0,0.00010958,2]
[323523115,1714067439732,-500.0,0.00010958,2]
[323523116,1714067439742,-500.0,0.00010958,2]
[323523117,1714067439752,-954.54,0.00010958,2]
[323523118,1714067439764,-500.0,0.00010958,2]
[323523119,1714067439773,-500.0,0.00010958,2]
[323523120,1714067439783,-643.38,0.00010958,2]
[323523121,1714067439794,-500.0,0.00010958,2]
[323523122,1714067439804,-500.0,0.00010958,2]
[323523123,1714067439815,-500.0,0.00010958,2]
[323523124,1714067439825,-500.0,0.00010958,2]
[323523125,1714067439836,-504.07438619,0.00010958,2]
[323523126,1714067439845,-500.0,0.00010958,2]
[323523127,1714067439855,-500.0,0.00010958,2]
[323523128,1714067439864,-845.56,0.00010958,2]
[323523129,1714067439873,-500.0,0.00010958,2]
[323523130,1714067439882,-500.0,0.00010958,2]
[323523131,1714067439891,-407.84900143,0.00010958,2]
[323523132,1714067439901,-500.0,0.00010958,2]
[323523133,1714067439910,-500.0,0.00010958,2]
[323523134,1714067439919,-500.0,0.00010958,2]
[323523135,1714067439929,-500.0,0.00010958,2]
[323523136,1714067439939,-500.0,0.00010958,2]
[323523137,1714067439949,-785.13,0.00010958,2]
[323523138,1714067439958,-500.0,0.00010958,2]
[323523139,1714067439969,-500.0,0.00010958,2]
[323523140,1714067439979,-500.0,0.00010958,2]
[323523141,1714067439988,-500.0,0.00010958,2]
[323523142,1714067439998,-500.0,0.00010958,2]
[323523143,1714067440007,-500.0,0.00010958,2]
[323523144,1714067440017,-500.0,0.00010958,2]
[323523145,1714067440026,-500.0,0.00010958,2]
[323523146,1714067440036,-500.0,0.00010958,2]
[323523147,1714067440046,-763.14,0.00010958,2]
[323523148,1714067440056,-500.0,0.00010958,2]
[323523149,1714067440066,-500.0,0.00010958,2]
[323523150,1714067440076,-500.0,0.00010958,2]
[323523151,1714067440086,-836.92,0.00010958,2]
[323523152,1714067440095,-500.0,0.00010958,2]
[323523153,1714067440105,-500.0,0.00010958,2]
[323523154,1714067440114,-500.0,0.00010958,2]
[323523155,1714067440124,-500.0,0.00010958,2]
[323523156,1714067440134,-500.0,0.00010958,2]
[323523157,1714067440143,-1006.08,0.00010958,2]
[323523158,1714067440153,-500.0,0.00010958,2]
[323523159,1714067440162,-500.0,0.00010958,2]
[323523160,1714067440171,-500.0,0.00010958,2]
[323523162,1714067440180,-500.0,0.00010958,2]
[323523164,1714067440190,-567.83,0.00010958,2]
[323523165,1714067440200,-500.0,0.00010958,2]
[323523166,1714067440209,-500.0,0.00010958,2]
[323523167,1714067440220,-537.47,0.00010958,2]
[323523168,1714067440230,-500.0,0.00010958,2]
[323523169,1714067440240,-500.0,0.00010958,2]
[323523170,1714067440249,-500.0,0.00010958,2]
[323523171,1714067440258,-894.31,0.00010958,2]
[323523172,1714067440268,-500.0,0.00010958,2]
[323523173,1714067440278,-500.0,0.00010958,2]
[323523174,1714067440287,-500.0,0.00010958,2]
[323523175,1714067440296,-648.55,0.00010958,2]
[323523176,1714067440306,-500.0,0.00010958,2]
[323523177,1714067440316,-500.0,0.00010958,2]
[323523178,1714067440326,-500.0,0.00010958,2]
[323523179,1714067440336,-500.0,0.00010958,2]
[323523180,1714067440345,-500.0,0.00010958,2]
[323523181,1714067440357,-500.0,0.00010958,2]
[323523182,1714067440367,-500.0,0.00010958,2]
[323523183,1714067440381,-584.11,0.00010958,2]
[323523184,1714067440392,-500.0,0.00010958,2]
[323523185,1714067440402,-500.0,0.00010958,2]
[323523186,1714067440414,-500.0,0.00010958,2]
[323523187,1714067440427,-500.0,0.00010958,2]
[323523188,1714067440438,-500.0,0.00010958,2]
[323523189,1714067440450,-150.0,0.00010958,2]
[323523190,1714067440463,-500.0,0.00010958,2]
[323523191,1714067440473,-500.0,0.00010958,2]
[323523192,1714067440483,-368.57,0.00010958,2]
[323523193,1714067440494,-500.0,0.00010958,2]
[323523194,1714067440506,-500.0,0.00010958,2]
[323523195,1714067440516,-500.0,0.00010958,2]
[323523196,1714067440527,-540.93,0.00010958,2]
[323523197,1714067440537,-500.0,0.00010958,2]
[323523198,1714067440548,-500.0,0.00010958,2]
[323523199,1714067440559,-500.0,0.00010958,2]
[323523200,1714067440569,-500.0,0.00010958,2]
[323523201,1714067440580,-500.0,0.00010958,2]
[323523202,1714067440590,-500.0,0.00010958,2]
[323523203,1714067440600,-500.0,0.00010958,2]
[323523204,1714067440610,-500.0,0.00010958,2]
[323523205,1714067440621,-502.32250162,0.00010958,2]
[323523206,1714067440634,-411.10777307,0.00010958,2]
[323523207,1714067440644,-500.0,0.00010958,2]
[323523208,1714067440654,-500.0,0.00010958,2]
[323523209,1714067440670,-500.0,0.00010958,2]
[323523210,1714067440681,-500.0,0.00010958,2]
[323523211,1714067440691,-500.0,0.00010958,2]
[323523212,1714067440701,-610.96,0.00010958,2]
[323523213,1714067440712,-408.07816839,0.00010958,2]
[323523214,1714067440722,-315.44,0.00010958,2]
[323523215,1714067440732,-500.0,0.00010958,2]
[323523216,1714067440742,-500.0,0.00010958,2]
[323523217,1714067440752,-588.05,0.00010958,2]
[323523218,1714067440763,-500.0,0.00010958,2]
[323523219,1714067440773,-500.0,0.00010958,2]
[323523220,1714067440784,-500.0,0.00010958,2]
[323523221,1714067440794,-500.0,0.00010958,2]
[323523222,1714067440805,-500.0,0.00010958,2]
[323523223,1714067440817,-500.0,0.00010958,2]
[323523224,1714067440827,-500.0,0.00010958,2]
[323523225,1714067440838,-500.0,0.00010958,2]
[323523226,1714067440848,-500.0,0.00010958,2]
[323523227,1714067440859,-500.0,0.00010958,2]
[323523228,1714067440869,-500.0,0.00010958,2]
[323523229,1714067440881,-500.0,0.00010958,2]
[323523230,1714067440892,-500.0,0.00010958,2]
[323523231,1714067440901,-500.0,0.00010958,2]
[323523232,1714067440911,-500.0,0.00010958,2]
[323523233,1714067440921,-542.44,0.00010958,2]
[323523234,1714067440931,-500.0,0.00010958,2]
[323523235,1714067440941,-796.54,0.00010958,2]
[323523236,1714067440950,-500.0,0.00010958,2]
[323523237,1714067440960,-500.0,0.00010958,2]
[323523238,1714067440970,-500.0,0.00010958,2]
[323523239,1714067440980,-328.1583332,0.00010958,2]
[323523240,1714067440990,-500.0,0.00010958,2]
[323523241,1714067440999,-500.0,0.00010958,2]
[323523242,1714067441009,-500.0,0.00010958,2]
[323523243,1714067441018,-500.0,0.00010958,2]
[323523244,1714067441028,-500.0,0.00010958,2]
[323523245,1714067441038,-500.0,0.00010958,2]
[323523246,1714067441047,-914.08,0.00010958,2]
[323523247,1714067441056,-500.0,0.00010958,2]
[323523248,1714067441066,-563.4,0.00010958,2]
[323523249,1714067441075,-500.0,0.00010958,2]
[323523250,1714067441085,-500.0,0.00010958,2]
[323523251,1714067441096,-607.51515994,0.00010958,2]
[323523252,1714067441107,-500.0,0.00010958,2]
[323523253,1714067441116,-500.0,0.00010958,2]
[323523254,1714067441126,-487.31,0.00010958,2]
[323523255,1714067441136,-500.0,0.00010958,2]
[323523256,1714067441146,-244.74786915,0.00010958,2]
[323523257,1714067441155,-500.0,0.00010958,2]
[323523258,1714067441165,-668.11,0.00010958,2]
[323523259,1714067441175,-715.92,0.00010958,2]
[323523260,1714067441185,-500.0,0.00010958,2]
[323523261,1714067441197,-500.0,0.00010958,2]
[323523262,1714067441206,-1121.85,0.00010958,2]
[323523263,1714067441217,-500.0,0.00010958,2]
[323523264,1714067441226,-2051.83,0.00010958,2]
[323523265,1714067441235,-928.51,0.00010958,2]
[323523266,1714067441245,-854.92,0.00010958,2]
[323523267,1714067441254,-500.0,0.00010958,2]
[323523268,1714067441264,-1005.82,0.00010958,2]
[323523269,1714067441273,-500.0,0.00010958,2]
[323523270,1714067441283,-893.22,0.00010958,2]
[323523271,1714067441293,-500.0,0.00010958,2]
[323523272,1714067441303,-500.0,0.00010958,2]
[323523273,1714067441313,-503.3,0.00010958,2]
[323523274,1714067441324,-500.0,0.00010958,2]
[323523275,1714067441333,-500.0,0.00010958,2]
[323523276,1714067441343,-500.0,0.00010958,2]
[323523277,1714067441353,-500.0,0.00010958,2]
[323523278,1714067441363,-500.0,0.00010958,2]
[323523279,1714067441374,-500.0,0.00010958,2]
[323523280,1714067441385,-500.0,0.00010958,2]
[323523281,1714067441394,-500.0,0.00010958,2]
[323523282,1714067441403,-1018.77,0.00010958,2]
[323523283,1714067441413,-500.0,0.00010958,2]
[323523284,1714067441422,-1601.08,0.00010958,2]
[323523285,1714067441431,-500.0,0.00010958,2]
[323523286,1714067441440,-500.0,0.00010958,2]
[323523287,1714067441451,-500.0,0.00010958,2]
[323523288,1714067441460,-500.0,0.00010958,2]
[323523289,1714067441471,-500.0,0.00010958,2]
[323523290,1714067441480,-500.0,0.00010958,2]
[323523291,1714067441489,-500.0,0.00010958,2]
[323523292,1714067441497,-577.70999594,0.00010958,2]
[323523293,1714067441507,-500.0,0.00010958,2]
[323523294,1714067441517,-500.0,0.00010958,2]
[323523295,1714067441527,-1114.47,0.00010958,2]
[323523296,1714067441536,-500.0,0.00010958,2]
[323523297,1714067441546,-500.0,0.00010958,2]
[323523298,1714067441555,-1161.09,0.00010958,2]
[323523299,1714067441565,-500.0,0.00010958,2]
[323523300,1714067441574,-500.0,0.00010958,2]
[323523301,1714067441584,-500.0,0.00010958,2]
[323523302,1714067441594,-500.0,0.00010958,2]
[323523303,1714067441604,-500.0,0.00010958,2]
[323523304,1714067441614,-500.0,0.00010958,2]
[323523305,1714067441624,-8685.8,0.00010958,2]
[323523306,1714067441633,-500.0,0.00010958,2]